bitfinex/quotes_BTCUSD_20220105
["timestamp","ask_amount","ask_price","bid_price","bid_amount"]
[1641416045520,0.0477,44118.0,44117.0,0.00124814]
[1641416045725,0.0477,44118.0,44117.0,0.10123996]
[1641416045726,0.374193,44118.0,44117.0,0.10123996]
[1641416045929,0.0345085,44134.0,44118.0,2.316]
[1641416046126,0.01337498,44151.0,44133.0,0.08623996]
[1641416046322,0.01337498,44151.0,44134.0,0.28100831]
[1641416046323,0.01376003,44146.0,44134.0,0.28100831]
[1641416046621,0.6316397,44142.0,44134.0,0.00121262]
[1641416046873,0.6316397,44142.0,44134.0,0.016]
[1641416046874,1.195,44141.0,44134.0,0.016]
[1641416047073,0.01376003,44136.0,44134.0,0.016]
[1641416047273,0.0615,44135.0,44134.0,0.016]
[1641416047671,0.01324,44139.0,44134.0,0.016]
[1641416048071,0.01324,44139.0,44135.0,0.59911062]
[1641416048473,0.01324,44139.0,44136.0,0.23008148]
[1641416048674,0.01324,44139.0,44138.0,0.24719174]
[1641416049274,0.01324,44139.0,44138.0,0.51757366]
[1641416049478,0.01324,44139.0,44138.0,0.24719174]
[1641416050076,0.02700003,44139.0,44135.0,0.05666]
[1641416050277,0.02700003,44139.0,44130.0,0.11332078]
[1641416050532,0.02700003,44139.0,44119.0,1.1498]
[1641416050533,0.01376003,44131.0,44119.0,1.1498]
[1641416050731,0.25616677,44139.0,44119.0,0.08623996]
[1641416050732,0.26006418,44138.0,44119.0,0.08623996]
[1641416050927,0.26006418,44138.0,44130.0,0.023]
[1641416050928,0.2,44136.0,44130.0,0.023]
[1641416051128,2.5350067,44131.0,44130.0,0.023]
[1641416051327,1.395,44127.0,44118.0,7.353e-05]
[1641416051528,2.33376003,44119.0,44118.0,7.353e-05]
[1641416051727,3.83196003,44119.0,44118.0,7.353e-05]
[1641416052128,4.43719418,44119.0,44118.0,7.353e-05]
[1641416052326,4.53719418,44119.0,44118.0,7.353e-05]
[1641416052526,4.53719418,44119.0,44118.0,3.53e-06]
[1641416052727,4.59389818,44119.0,44116.0,0.01693]
[1641416052926,0.568193,44117.0,44116.0,0.01693]
[1641416053133,0.609893,44117.0,44116.0,0.01693]
[1641416053327,0.609893,44117.0,44111.0,0.00411]
[1641416053529,0.2615,44113.0,44111.0,0.00411]
[1641416053729,2.74365303,44112.0,44111.0,0.00411]
[1641416053928,2.94365303,44112.0,44111.0,0.00411]
[1641416054128,4.13865303,44112.0,44111.0,0.00411]
[1641416054375,0.42365303,44112.0,44111.0,0.00411]
[1641416054877,0.429893,44112.0,44111.0,0.00411]
[1641416055076,0.44365303,44112.0,44111.0,0.00411]
[1641416055474,0.64365303,44112.0,44111.0,0.00411]
[1641416055876,2.58365303,44112.0,44111.0,0.00411]
[1641416056074,2.56365303,44112.0,44111.0,0.00411]
[1641416056273,2.66365303,44112.0,44111.0,0.00411]
[1641416056476,4.05865303,44112.0,44111.0,0.00411]
[1641416056673,2.76365303,44112.0,44111.0,0.00411]
[1641416056875,0.44265303,44112.0,44111.0,0.00411]
[1641416057075,0.44265303,44112.0,44111.0,0.00418292]
[1641416057275,1.93265303,44112.0,44111.0,8.292e-05]
[1641416057478,2.13265303,44112.0,44111.0,8.292e-05]
[1641416057874,0.64265303,44112.0,44111.0,8.292e-05]
[1641416058134,0.62365303,44112.0,44111.0,8.292e-05]
[1641416058535,0.409893,44112.0,44111.0,8.292e-05]
[1641416058936,0.430893,44112.0,44111.0,8.292e-05]
[1641416059535,0.0627,44112.0,44111.0,8.292e-05]
[1641416059735,0.07646003,44112.0,44111.0,8.292e-05]
[1641416059936,0.0627,44112.0,44111.0,8.292e-05]
[1641416060135,0.0417,44112.0,44111.0,8.292e-05]
[1641416060940,0.0697,44112.0,44111.0,8.292e-05]
[1641416062085,0.0417,44112.0,44111.0,8.292e-05]
[1641416062288,0.05546003,44112.0,44111.0,8.292e-05]
[1641416062686,0.11216203,44112.0,44111.0,8.292e-05]
[1641416062886,0.13916203,44112.0,44111.0,8.292e-05]
[1641416063489,0.125402,44112.0,44111.0,8.292e-05]
[1641416063685,0.515402,44112.0,44111.0,8.292e-05]
[1641416063888,0.52916203,44112.0,44111.0,8.292e-05]
[1641416064088,0.027,44112.0,44111.0,8.292e-05]
[1641416064388,0.00120789,44113.0,44111.0,8.292e-05]
[1641416064788,0.05720789,44113.0,44111.0,8.292e-05]
[1641416065627,1.17,44112.0,44111.0,8.292e-05]
[1641416065830,0.5,44112.0,44111.0,8.292e-05]
[1641416066527,0.5,44112.0,44108.0,0.59221436]
[1641416066729,0.556699,44112.0,44108.0,0.59221436]
[1641416066930,0.526,44112.0,44108.0,0.59221436]
[1641416067229,0.01376003,44109.0,44108.0,0.59221436]
[1641416067828,0.01376003,44109.0,44108.0,0.59228346]
[1641416068230,0.01376003,44109.0,44108.0,6.91e-05]
[1641416068634,0.5,44112.0,44109.0,2.32]
[1641416068635,0.4941,44112.0,44109.0,2.32]
[1641416068831,0.4941,44112.0,44110.0,0.368193]
[1641416068832,0.4785,44112.0,44110.0,0.368193]
[1641416069035,0.21897742,44127.0,44114.0,0.00123257]
[1641416069310,0.39,44129.0,44119.0,3.00874491]
[1641416069499,0.39,44129.0,44120.0,2.32]
[1641416069699,0.0001,44130.0,44127.0,0.42021816]
[1641416069899,0.0001,44130.0,44128.0,0.368193]
[1641416070499,0.0001,44130.0,44127.0,0.39064075]
[1641416071003,0.0001,44130.0,44128.0,0.079663]
[1641416072002,0.0001,44140.0,44132.0,0.38440406]
[1641416072203,0.0001,44140.0,44135.0,0.05666118]
[1641416072400,0.00886003,44138.0,44131.0,0.33747991]
[1641416072801,0.009,44138.0,44131.0,0.34347991]
[1641416073023,0.009,44138.0,44133.0,0.056659]
[1641416073222,0.009,44138.0,44131.0,0.006]
[1641416073825,0.004,44138.0,44131.0,0.006]
[1641416074022,0.00386003,44134.0,44129.0,0.23807533]
[1641416074222,0.00386003,44134.0,44127.0,0.11333094]
[1641416074623,0.00386003,44134.0,44130.0,0.056668]
[1641416074825,0.0001,44140.0,44131.0,0.23011916]
[1641416075025,0.0001,44140.0,44134.0,0.11330698]
[1641416075225,0.0001,44140.0,44135.0,0.24902704]
[1641416075423,0.0001,44140.0,44135.0,0.00126311]
[1641416075622,0.0001,44140.0,44135.0,0.22947747]
[1641416075823,0.0001,44140.0,44139.0,1.45395426]
[1641416076022,0.0001,44140.0,44139.0,1.70009422]
[1641416076224,0.0001,44140.0,44137.0,0.113296]
[1641416076430,0.0001,44140.0,44138.0,0.11329512]
[1641416077982,0.00386003,44139.0,44137.0,0.016]
[1641416078180,2.34205303,44138.0,44129.0,0.056669]
[1641416078381,0.368193,44138.0,44129.0,0.056664]
[1641416078579,0.00130324,44140.0,44128.0,0.24947534]
[1641416078580,0.0001,44140.0,44128.0,0.24947534]
[1641416078984,0.002,44138.0,44132.0,0.05665894]
[1641416079181,0.002,44138.0,44130.0,0.113325]
[1641416079782,0.56021044,44135.0,44129.0,0.06320278]
[1641416079981,1.52386003,44130.0,44129.0,0.06320278]
[1641416080184,0.37205303,44130.0,44129.0,0.062]
[1641416080630,2.37386003,44130.0,44112.0,1.181879]
[1641416080833,2.37386003,44130.0,44108.0,6.91e-05]
[1641416080834,0.00386003,44117.0,44110.0,0.7708]
[1641416081030,0.00386003,44111.0,44109.0,0.113375]
[1641416081429,0.00386003,44111.0,44108.0,6.91e-05]
[1641416081633,0.62310558,44116.0,44108.0,0.05676366]
[1641416081634,0.00386003,44116.0,44108.0,0.05676366]
[1641416081828,0.47386003,44109.0,44108.0,0.05676366]
[1641416082029,0.00386003,44109.0,44108.0,0.37278453]
[1641416082231,0.0417,44131.0,44108.0,0.42948053]
[1641416082434,0.00386003,44119.0,44111.0,0.00122035]
[1641416082630,0.52106309,44129.0,44116.0,0.60037003]
[1641416082932,0.00386003,44119.0,44116.0,0.60037003]
[1641416083131,0.00386003,44119.0,44117.0,0.26555665]
[1641416083330,0.00386003,44119.0,44117.0,0.43558265]
[1641416083729,0.00386003,44119.0,44118.0,1.28173109]
[1641416084576,1.28386003,44119.0,44118.0,1.28173109]
[1641416084776,1.33386003,44119.0,44118.0,1.28173109]
[1641416085075,0.06786003,44119.0,44118.0,1.28173109]
[1641416085277,0.01786003,44119.0,44113.0,1.28173109]
[1641416085476,0.00386003,44116.0,44113.0,1.28173109]
[1641416085880,0.0417,44115.0,44113.0,1.28173109]
[1641416086076,0.16452141,44115.0,44113.0,1.28173109]
[1641416086275,0.21452141,44115.0,44113.0,1.28173109]
[1641416086480,0.21452141,44115.0,44113.0,1.22073109]
[1641416086685,0.148394,44115.0,44113.0,1.22073109]
[1641416086875,0.160394,44115.0,44109.0,0.48910827]
[1641416087079,0.00386003,44112.0,44111.0,0.00123426]
[1641416087277,0.012,44115.0,44111.0,0.00123426]
[1641416087478,0.012,44115.0,44114.0,0.32624034]
[1641416088022,0.01586003,44115.0,44114.0,0.32624034]
[1641416088222,0.00386003,44115.0,44114.0,0.32624034]
[1641416088821,0.00386003,44115.0,44114.0,0.32620383]
[1641416089022,0.01686003,44115.0,44114.0,6.349e-05]
[1641416090132,0.01346484,44127.0,44119.0,0.08313997]
[1641416090324,0.01346484,44127.0,44122.0,0.056673]
[1641416090523,0.01346484,44127.0,44119.0,0.08313997]
[1641416090723,0.01466832,44127.0,44119.0,0.08313997]
[1641416090922,0.30710488,44124.0,44122.0,0.004]
[1641416091124,3.31079656,44123.0,44122.0,0.004]
[1641416091797,3.36079656,44123.0,44122.0,0.004]
[1641416092182,3.36079656,44123.0,44119.0,0.08313997]
[1641416092383,1.7015,44120.0,44119.0,0.08313997]
[1641416092684,1.7515,44120.0,44119.0,0.08313997]
[1641416092884,2.04444387,44120.0,44119.0,0.08313997]
[1641416093087,2.04444387,44120.0,44119.0,9.97e-06]
[1641416093088,3.38944387,44120.0,44119.0,9.97e-06]
[1641416093285,3.39681222,44120.0,44119.0,9.97e-06]
[1641416093684,0.2,44115.0,44114.0,1.346e-05]
[1641416093886,1.16833576,44115.0,44114.0,1.346e-05]
[1641416094086,2.61841604,44115.0,44114.0,1.346e-05]
[1641416094288,2.71841604,44115.0,44107.0,0.00055]
[1641416094485,0.00122711,44109.0,44107.0,0.00055]
[1641416094686,3.23182806,44108.0,44107.0,0.00055]
[1641416094986,0.1032,44108.0,44107.0,0.00055]
[1641416095287,0.9332,44108.0,44107.0,0.00055]
[1641416095534,0.1032,44108.0,44107.0,0.24484463]
[1641416095733,0.016,44109.0,44107.0,0.24484463]
[1641416096231,0.01346502,44114.0,44107.0,0.00055]
[1641416096431,0.0615,44110.0,44107.0,0.00055]
[1641416096633,0.155119,44110.0,44107.0,0.00055]
[1641416096836,1.568193,44108.0,44107.0,0.00055]
[1641416097031,0.368193,44108.0,44107.0,0.00055]
[1641416097430,0.62,44108.0,44107.0,0.00055]
[1641416097634,0.056705,44109.0,44107.0,0.00055]
[1641416098432,2.388193,44108.0,44107.0,0.00055]
[1641416099033,2.588193,44108.0,44107.0,0.00055]
[1641416099283,2.388193,44108.0,44107.0,0.00055]
[1641416099873,2.388193,44108.0,44107.0,0.00061426]
[1641416100785,2.429893,44108.0,44107.0,0.00061426]
[1641416101374,4.124893,44108.0,44107.0,0.00061426]
[1641416101774,4.224893,44108.0,44107.0,0.00061426]
[1641416102175,3.824893,44108.0,44107.0,0.00061426]
[1641416102776,2.629893,44108.0,44107.0,0.00061426]
[1641416103027,2.429893,44108.0,44107.0,0.00061426]
[1641416103228,0.409893,44108.0,44107.0,0.00061426]
[1641416103628,0.01346502,44114.0,44107.0,0.00061426]
[1641416103829,0.01346502,44114.0,44109.0,0.00129072]
[1641416104128,0.01346502,44114.0,44111.0,0.29706399]
[1641416104327,0.00125243,44129.0,44116.0,0.056679]
[1641416104538,0.368193,44128.0,44115.0,0.00125888]
[1641416105128,0.624871,44128.0,44115.0,0.00125888]
[1641416105827,0.55742358,44123.0,44112.0,0.5088819]
[1641416106029,0.60742358,44123.0,44112.0,0.5088819]
[1641416106231,0.00121683,44117.0,44107.0,0.00061426]
[1641416106433,0.2615,44113.0,44107.0,0.00061426]
[1641416106628,0.36943879,44109.0,44107.0,0.00061426]
[1641416106882,2.1115,44108.0,44107.0,0.00061426]
[1641416107384,0.8315,44108.0,44107.0,0.00061426]
[1641416108183,1.7015,44108.0,44107.0,0.00061426]
[1641416108584,1.7015,44108.0,44107.0,0.00050426]
[1641416108585,1.7432,44108.0,44107.0,0.00050426]
[1641416108902,1.7432,44108.0,44101.0,0.0036762]
[1641416108903,0.00123744,44103.0,44101.0,0.0036762]
[1641416109092,0.00123744,44103.0,44092.0,0.1158527]
[1641416109093,0.255255,44099.0,44092.0,0.1158527]
[1641416109286,0.193755,44094.0,44092.0,0.1158527]
[1641416109488,1.866955,44093.0,44092.0,0.1158527]
[1641416109691,3.16031604,44093.0,44092.0,0.0050827]
[1641416109896,2.678193,44090.0,44084.0,0.00033]
[1641416110086,2.871948,44086.0,44085.0,0.00022]
[1641416110286,2.963648,44086.0,44085.0,0.00022]
[1641416110529,2.503755,44085.0,44084.0,0.00033]
[1641416110732,0.368193,44083.0,44081.0,0.00433]
[1641416110935,2.601948,44081.0,44080.0,0.01323544]
[1641416111130,1.039893,44081.0,44080.0,0.01323544]
[1641416111333,0.41115559,44081.0,44080.0,0.01323544]
[1641416111533,0.62754228,44081.0,44080.0,0.01323544]
[1641416111734,0.41117089,44081.0,44080.0,0.01323544]
[1641416112237,2.92117089,44081.0,44079.0,0.00044]
[1641416112435,0.368193,44077.0,44075.0,0.00011]
[1641416112636,0.368193,44077.0,44070.0,0.0178932]
[1641416112637,2.678193,44073.0,44070.0,0.0178932]
[1641416112933,2.678193,44073.0,44056.0,0.00044]
[1641416112934,0.00620056,44055.0,44046.0,0.00044]
[1641416113143,1.16790056,44055.0,44046.0,0.00044]
[1641416113332,0.2,44053.0,44049.0,0.35957961]
[1641416113531,0.0417,44052.0,44050.0,0.32080685]
[1641416113736,0.0417,44052.0,44051.0,0.65362308]
[1641416113931,0.0417,44052.0,44050.0,0.32080685]
[1641416113932,0.0417,44052.0,44049.0,0.35957961]
[1641416114133,0.0417,44052.0,44047.0,0.00346602]
[1641416114386,0.0417,44052.0,44041.0,0.00011]
[1641416114792,0.04290965,44052.0,44041.0,0.1136479]
[1641416115089,0.04290965,44052.0,44039.0,0.40943218]
[1641416115090,0.05,44043.0,44039.0,0.40943218]
[1641416115290,2.31,44051.0,44039.0,0.40943218]
[1641416115291,0.20115079,44042.0,44039.0,0.40943218]
[1641416115485,0.20115079,44042.0,44040.0,0.48423888]
[1641416115690,0.20115079,44042.0,44027.0,0.0014859]
[1641416115691,0.15,44041.0,44027.0,0.0014859]
[1641416115895,2.13764928,44040.0,44024.0,0.00022]
[1641416116089,0.0615,44039.0,44034.0,0.00011]
[1641416116488,0.00120285,44037.0,44033.0,0.00011]
[1641416116688,0.00120285,44037.0,44034.0,0.93625624]
[1641416117189,0.00123992,44043.0,44035.0,0.368193]
[1641416117389,0.21764928,44053.0,44037.0,0.00124684]
[1641416117588,0.00128679,44049.0,44038.0,0.29100733]
[1641416117786,0.00128679,44049.0,44040.0,0.31524004]
[1641416118025,0.26764928,44053.0,44038.0,0.29100733]
[1641416118026,0.0417,44048.0,44038.0,0.29100733]
[1641416118226,0.21773353,44052.0,44037.0,0.13124684]
[1641416118227,0.00123606,44039.0,44037.0,0.13124684]
[1641416118528,0.14654194,44044.0,44039.0,1.28382526]
[1641416118727,0.04298689,44054.0,44040.0,0.368193]
[1641416118925,0.04298689,44054.0,44042.0,0.056776]
[1641416119127,0.04298689,44054.0,44039.0,1.45084154]
[1641416119128,0.04298689,44054.0,44049.0,0.2900176]
[1641416119326,0.20523551,44063.0,44050.0,0.52867203]
[1641416119327,0.00124097,44063.0,44050.0,0.52867203]
[1641416119529,0.00124097,44063.0,44049.0,0.3685576]
[1641416119530,0.21764928,44062.0,44051.0,0.056761]
[1641416119727,0.21764928,44068.0,44054.0,0.0567574]
[1641416119932,0.368193,44067.0,44054.0,0.0567574]
[1641416120129,0.00122814,44072.0,44060.0,0.26428139]
[1641416120327,0.368193,44071.0,44066.0,0.27882875]
[1641416120530,0.21764928,44074.0,44067.0,0.65891904]
[1641416120729,0.0417,44075.0,44064.0,0.15731466]
[1641416121129,0.024,44074.0,44059.0,0.001241]
[1641416121331,0.056761,44067.0,44055.0,0.05676]
[1641416121537,0.056761,44067.0,44055.0,0.00121434]
[1641416121787,0.0417,44068.0,44062.0,0.60699932]
[1641416121987,0.0417,44068.0,44062.0,1.02409219]
[1641416122186,0.0417,44068.0,44062.0,1.27439501]
[1641416122594,0.0417,44068.0,44062.0,0.60699932]
[1641416122886,0.0417,44068.0,44060.0,0.11]
[1641416123086,0.368193,44067.0,44060.0,0.11]
[1641416123486,0.409893,44067.0,44060.0,0.11]
[1641416123687,0.67577516,44065.0,44060.0,0.11]
[1641416123889,2.37276966,44061.0,44060.0,0.11]
[1641416124088,2.41446966,44061.0,44060.0,0.11]
[1641416124288,2.46446966,44061.0,44060.0,0.11]
[1641416124690,2.46446966,44061.0,44043.0,1.79735537]
[1641416124691,0.62885008,44047.0,44043.0,1.79735537]
[1641416124892,0.0417,44046.0,44043.0,1.79735537]
[1641416125094,0.25014403,44046.0,44043.0,1.79735537]
[1641416125290,0.25014403,44046.0,44038.0,0.00012114]
[1641416125291,0.00124081,44044.0,44038.0,0.00012114]
[1641416125525,0.0417,44043.0,44038.0,0.00012114]
[1641416125726,0.12744635,44050.0,44039.0,0.31358036]
[1641416125727,0.0417,44045.0,44039.0,0.31358036]
[1641416125925,0.0417,44045.0,44041.0,0.25786046]
[1641416126325,0.2,44044.0,44041.0,0.25786046]
[1641416126525,0.0417,44045.0,44040.0,0.65129688]
[1641416126526,0.098487,44045.0,44040.0,0.65129688]
[1641416126726,0.148487,44045.0,44040.0,0.65129688]
[1641416126926,0.00120517,44043.0,44038.0,0.00012114]
[1641416127128,0.1032,44042.0,44038.0,0.00012114]
[1641416127527,0.1032,44042.0,44039.0,0.32791166]
[1641416127730,0.0417,44042.0,44039.0,0.32791166]
[1641416127926,0.0917,44042.0,44040.0,0.66689874]
[1641416128128,0.0417,44042.0,44040.0,0.66689874]
[1641416128328,0.0417,44042.0,44038.0,0.00012114]
[1641416128628,0.368193,44041.0,44038.0,0.00012114]
[1641416128828,0.409893,44040.0,44033.0,0.00128501]
[1641416129029,0.0417,44039.0,44033.0,0.00128501]
[1641416129280,0.0417,44039.0,44035.0,0.66126251]
[1641416129678,0.0417,44039.0,44035.0,0.30246629]
[1641416129881,0.0417,44039.0,44034.0,0.00011013]
[1641416130084,0.2,44038.0,44034.0,0.00011013]
[1641416130288,0.2,44036.0,44030.0,0.00011]
[1641416130483,0.0417,44035.0,44026.0,1.79452758]
[1641416130685,0.0417,44035.0,44033.0,0.51072672]
[1641416130882,0.00128052,44040.0,44033.0,0.51072672]
[1641416130883,0.0417,44039.0,44033.0,0.51072672]
[1641416131081,0.0417,44039.0,44037.0,0.30339983]
[1641416131283,0.03943,44039.0,44037.0,0.30339983]
[1641416131485,0.03943,44039.0,44034.0,0.36440721]
[1641416131486,0.03943,44039.0,44024.0,0.11357927]
[1641416131684,0.03943,44039.0,44026.0,0.009]
[1641416131881,0.368193,44038.0,44026.0,0.065794]
[1641416132083,0.02943,44039.0,44026.0,0.009]
[1641416132283,0.02943,44039.0,44030.0,0.34039135]
[1641416132485,0.00127742,44037.0,44022.0,0.113591]
[1641416132688,0.2170109,44037.0,44022.0,0.113591]
[1641416132909,0.2170109,44037.0,44014.0,0.00022]
[1641416132910,3.275,44019.0,44014.0,0.00022]
[1641416133134,3.275,44019.0,44008.0,0.00055]
[1641416133135,1.37,44013.0,44010.0,0.0183216]
[1641416133338,1.37,44013.0,44002.0,0.02063188]
[1641416133339,0.368193,44010.0,44002.0,0.02063188]
[1641416133536,0.368193,44010.0,43998.0,0.00022]
[1641416133537,0.041849,44003.0,44000.0,0.12290765]
[1641416133735,0.041849,44003.0,43995.0,0.0103172]
[1641416133736,0.19739,43998.0,43995.0,0.0103172]
[1641416133930,0.19739,43998.0,43989.0,0.00011]
[1641416133931,0.13,43995.0,43991.0,0.00011]
[1641416134134,1.195,43994.0,43987.0,3.78418183]
[1641416134335,1.195,43994.0,43966.0,3.33992305]
[1641416134336,0.10123286,43988.0,43966.0,3.33992305]
[1641416134534,0.87245419,43987.0,43985.0,0.00011]
[1641416134731,0.04851524,43976.0,43973.0,0.00011]
[1641416134930,0.04851524,43976.0,43966.0,2.63518438]
[1641416135135,0.04379524,43976.0,43966.0,1.08107438]
[1641416135332,0.04379524,43976.0,43938.0,0.227497]
[1641416135535,0.03050059,43974.0,43943.0,0.82560068]
[1641416135731,0.22879364,43975.0,43938.0,0.227497]
[1641416135732,0.3646542,43975.0,43938.0,0.227497]
[1641416135939,0.20040468,43966.0,43942.0,0.1138]
[1641416136145,0.20040468,43966.0,43935.0,0.0297841]
[1641416136146,0.07685,43957.0,43935.0,0.0297841]
[1641416136337,0.411015,43956.0,43935.0,0.0297841]
[1641416136535,0.460905,43956.0,43935.0,0.0297841]
[1641416136790,0.460905,43956.0,43938.0,0.28506392]
[1641416136791,0.00118219,43944.0,43938.0,0.28506392]
[1641416136990,0.53654364,43952.0,43939.0,0.66183854]
[1641416137190,0.21601364,43953.0,43939.0,0.66183854]
[1641416137191,0.00116522,43944.0,43939.0,0.66183854]
[1641416137392,0.00105522,43944.0,43939.0,0.66183854]
[1641416137590,0.00120305,43942.0,43939.0,0.66183854]
[1641416137793,0.01670305,43942.0,43939.0,0.66183854]
[1641416137994,0.00536305,43942.0,43939.0,0.66183854]
[1641416138197,0.5,43951.0,43939.0,0.66183854]
[1641416138198,0.71601364,43950.0,43939.0,0.90068284]
[1641416138393,0.49989,43950.0,43939.0,0.90193529]
[1641416138594,0.49989,43950.0,43940.0,0.39869135]
[1641416138595,0.49978,43950.0,43940.0,0.39869135]
[1641416138794,0.2,43957.0,43942.0,0.09999999]
[1641416138996,0.2,43957.0,43947.0,0.10120952]
[1641416138997,0.19989,43957.0,43947.0,0.10120952]
[1641416139195,0.19989,43957.0,43955.0,0.24557479]
[1641416139394,0.19978,43957.0,43955.0,0.24557479]
[1641416139593,0.19967,43957.0,43955.0,0.24557479]
[1641416139794,0.19967,43957.0,43956.0,1.95553827]
[1641416139992,0.20040468,43966.0,43956.0,2.67343917]
[1641416140197,0.04368524,43976.0,43964.0,0.09999999]
[1641416140394,0.04368524,43976.0,43973.0,0.09999999]
[1641416140641,0.04368524,43976.0,43974.0,0.369571]
[1641416141038,0.08568524,43976.0,43975.0,2.92240973]
[1641416141236,0.08568524,43976.0,43975.0,0.98326551]
[1641416141440,0.08568524,43976.0,43975.0,1.89235979]
[1641416141637,0.08568524,43976.0,43975.0,1.27995006]
[1641416141837,0.08568524,43976.0,43975.0,0.60999367]
[1641416142442,0.04368524,43976.0,43975.0,0.60882093]
[1641416142639,0.04368524,43976.0,43975.0,1.2766847]
[1641416142838,0.04368524,43976.0,43975.0,1.54550096]
[1641416143041,0.04368524,43976.0,43975.0,2.01507195]
[1641416143243,0.10368524,43976.0,43975.0,2.08651864]
[1641416143451,0.2489,43997.0,43976.0,0.41324576]
[1641416143642,0.2489,43997.0,43985.0,0.0012384]
[1641416143844,0.113692,44005.0,43985.0,0.24877633]
[1641416144043,0.02366236,44011.0,43989.0,0.30413891]
[1641416144044,0.305643,44003.0,43989.0,0.30413891]
[1641416144683,0.056843,44003.0,43989.0,0.30413891]
[1641416144888,1.195,44002.0,43985.0,0.0012384]
[1641416145190,1.195,44002.0,43989.0,0.009]
[1641416145191,0.056852,43998.0,43989.0,0.009]
[1641416145386,0.292758,43994.0,43989.0,0.009]
[1641416145687,0.292758,43993.0,43989.0,0.009]
[1641416145886,0.292758,43990.0,43989.0,0.009]
[1641416146286,0.292758,43990.0,43977.0,0.10123868]
[1641416146490,1.4187,43995.0,43983.0,0.00121074]
[1641416146690,0.292758,43994.0,43992.0,0.6535724]
[1641416146893,0.2487,43995.0,43992.0,0.6535724]
[1641416147087,1.195,43998.0,43988.0,0.34100635]
[1641416147288,0.0417,43999.0,43983.0,0.00821074]
[1641416147289,1.195,43996.0,43983.0,0.00821074]
[1641416147492,0.334458,43995.0,43983.0,0.007]
[1641416147889,0.60092234,43995.0,43983.0,0.007]
[1641416148129,0.639771,43988.0,43983.0,0.007]
[1641416148328,0.292758,43987.0,43975.0,0.5094861]
[1641416148532,0.0917,43995.0,43976.0,0.09999999]
[1641416148735,0.0917,43995.0,43975.0,0.5094861]
[1641416148736,0.0417,43995.0,43975.0,0.5094861]
[1641416148930,0.0417,43995.0,43976.0,0.09999999]
[1641416149130,0.0417,43995.0,43976.0,0.10699999]
[1641416149330,0.0367,43995.0,43976.0,0.10699999]
[1641416149532,0.292758,43994.0,43985.0,0.28594622]
[1641416149733,0.56793706,44002.0,43985.0,0.28594622]
[1641416150134,0.25853775,44001.0,43983.0,0.000178]
[1641416150438,0.56783087,43989.0,43983.0,0.000178]
[1641416150642,0.292758,43985.0,43983.0,0.000178]
[1641416150832,0.19572736,43993.0,43976.0,0.46167526]
[1641416150833,0.292758,43984.0,43976.0,0.46167526]
[1641416151035,0.2487,43995.0,43983.0,0.24727676]
[1641416151238,0.2487,43995.0,43984.0,0.00015127]
[1641416151239,0.292758,43994.0,43984.0,0.00015127]
[1641416151635,0.314716,43998.0,43992.0,0.09999999]
[1641416151636,0.0999,43998.0,43992.0,0.09999999]
[1641416151889,0.004,44009.0,43997.0,0.48214152]
[1641416152083,0.26363659,44005.0,43997.0,0.42531852]
[1641416152287,0.26363659,44005.0,43998.0,0.369571]
[1641416152483,0.004,44009.0,44004.0,0.09999999]
[1641416152686,0.004,44019.0,44005.0,0.369571]
[1641416152989,0.004,44019.0,44015.0,0.09999999]
[1641416153286,0.004,44019.0,44006.0,0.22719773]
[1641416153287,0.004,44019.0,44006.0,0.17039773]
[1641416153484,0.004,44019.0,44012.0,0.38524065]
[1641416153686,0.004,44019.0,44017.0,0.09999999]
[1641416153888,0.004,44019.0,44018.0,2.679165]
[1641416154284,0.306702,44038.0,44018.0,2.679165]
[1641416154485,0.306702,44038.0,44021.0,0.41777292]
[1641416154486,0.2499,44038.0,44021.0,0.41777292]
[1641416154685,0.004,44039.0,44022.0,0.469165]
[1641416154888,0.004,44039.0,44022.0,0.1]
[1641416155086,0.004,44039.0,44029.0,2.31]
[1641416155286,0.004,44039.0,44036.0,0.21496024]
[1641416155541,0.004,44039.0,44028.0,0.10129309]
[1641416155542,0.004,44039.0,44028.0,0.00129309]
[1641416155834,0.004,44039.0,44032.0,0.09999999]
[1641416156136,1.05352848,44046.0,44042.0,0.38949776]
[1641416156337,0.95067512,44045.0,44044.0,0.58864476]
[1641416156537,0.95067512,44045.0,44037.0,0.00121392]
[1641416156538,0.29782,44044.0,44037.0,0.00121392]
[1641416156732,0.95067512,44045.0,44032.0,0.11355054]
[1641416156932,0.95067512,44045.0,44032.0,0.21355053]
[1641416157134,1.00752848,44051.0,44037.0,0.00329963]
[1641416157335,0.52577899,44054.0,44037.0,0.00329963]
[1641416157533,0.48476879,44046.0,44037.0,0.00329963]
[1641416157734,0.47976879,44046.0,44037.0,0.00329963]
[1641416158234,0.23488838,44054.0,44039.0,0.31160496]
[1641416158435,0.29782,44053.0,44042.0,0.38226779]
[1641416158632,0.29782,44053.0,44037.0,0.00329963]
[1641416158832,0.2499,44055.0,44037.0,0.002]
[1641416159039,0.56441819,44050.0,44039.0,0.59060319]
[1641416159277,0.56441819,44050.0,44038.0,0.15]
[1641416159480,0.27282794,44046.0,44039.0,0.00123927]
[1641416159678,0.27282794,44046.0,44037.0,0.004]
[1641416159679,0.29782,44042.0,44037.0,0.004]
[1641416159880,2.60782,44038.0,44037.0,0.004]
[1641416160079,3.09234825,44038.0,44037.0,0.004]
[1641416160478,3.09234825,44038.0,44020.0,0.53974068]
[1641416160479,0.056803,44034.0,44016.0,0.05680065]
[1641416160680,3.09234825,44038.0,44027.0,0.29299752]
[1641416160681,0.25946047,44037.0,44027.0,0.29299752]
[1641416160979,0.29782,44036.0,44019.0,0.00128584]
[1641416161179,0.29782,44036.0,44027.0,0.007]
[1641416161689,0.29782,44036.0,44001.0,0.5595]
[1641416161690,0.007,44027.0,44001.0,0.5595]
[1641416161878,0.007,44027.0,44002.0,0.00122997]
[1641416161879,0.04291609,44026.0,44002.0,0.00122997]
[1641416162080,0.3065637,44024.0,44008.0,0.23895866]
[1641416162279,0.056822,44022.0,44007.0,0.34120614]
[1641416162479,0.056822,44022.0,43984.0,0.056828]
[1641416162480,2.60782,44021.0,43984.0,0.056828]
[1641416162681,2.60782,44021.0,44000.0,0.0003]
[1641416162682,0.59298574,44005.0,44000.0,0.0003]
[1641416162883,0.23493741,44004.0,44000.0,0.0003]
[1641416163138,2.3112131,44001.0,44000.0,0.0333]